bitfinex/quotes_SOLUSD_20251208
["timestamp","ask_amount","ask_price","bid_price","bid_amount"]
[1765208267971,8.06,135.74,135.73,5.22825624]
[1765208268152,12.80611531,135.77,135.73,5.22825624]
[1765208268354,12.80611531,135.77,135.75,4.51825624]
[1765208268576,8.06,135.77,135.74,0.71]
[1765208268770,8.06,135.77,135.75,7.3664825]
[1765208269178,8.06,135.77,135.76,0.71]
[1765208269987,16.86994492,135.83,135.76,5.22825624]
[1765208270153,8.06,135.83,135.78,4.51825624]
[1765208270655,8.06,135.83,135.79,0.71]
[1765208270855,8.06,135.83,135.8,11.88202649]
[1765208271052,8.06,135.83,135.79,12.5925437]
[1765208271259,8.06,135.83,135.8,0.65]
[1765208271860,8.06,135.83,135.8,5.16825624]
[1765208272165,8.06,135.83,135.82,4.51825624]
[1765208272365,8.80994492,135.86,135.81,5.16825624]
[1765208272366,8.06,135.86,135.81,5.16825624]
[1765208272678,8.06,135.86,135.79,25.77506881]
[1765208272679,8.80994492,135.85,135.79,7.36428746]
[1765208272862,12.12175173,135.84,135.79,8.01428746]
[1765208273264,7.3617292,135.84,135.8,0.65]
[1765208273863,12.12110926,135.84,135.8,0.65]
[1765208274060,7.3617292,135.84,135.8,8.01372785]
[1765208274367,8.06,135.83,135.8,8.01372785]
[1765208275186,8.06,135.83,135.81,0.65]
[1765208275572,8.06,135.83,135.8,7.36372785]
[1765208275773,8.06,135.83,135.81,0.65]
[1765208275963,8.06,135.83,135.8,7.36372785]
[1765208276292,8.06,135.83,135.8,0.65]
[1765208276460,8.06,135.83,135.79,7.36411092]
[1765208276765,15.42218451,135.83,135.79,8.01411092]
[1765208276962,8.06,135.83,135.8,8.01371984]
[1765208277163,15.42219798,135.83,135.8,0.65]
[1765208277389,8.06,135.83,135.8,8.01375273]
[1765208277886,8.06,135.83,135.8,7.36375273]
[1765208278086,8.06,135.83,135.81,0.65]
[1765208278270,23.66905282,135.87,135.81,12.5310622]
[1765208278593,8.80994492,135.86,135.82,4.51825624]
[1765208278769,8.06,135.87,135.83,4.51825624]
[1765208279090,8.06,135.87,135.83,5.16825624]
[1765208279278,8.06,135.87,135.84,0.65]
[1765208280282,8.06,135.87,135.85,7.36105999]
[1765208280596,0.2,135.89,135.86,4.51825624]
[1765208280799,0.2,135.89,135.87,4.51825624]
[1765208280963,0.2,135.89,135.88,5.17825624]
[1765208281595,8.06,135.92,135.88,5.17825624]
[1765208281764,8.06,135.92,135.9,4.51825624]
[1765208281972,15.41569334,135.95,135.9,4.51825624]
[1765208282183,8.06,135.95,135.91,0.66]
[1765208282487,8.06,135.95,135.92,7.35726898]
[1765208282997,8.06,135.95,135.93,0.66]
[1765208283167,0.2,135.97,135.93,5.17825624]
[1765208283667,0.2,135.97,135.94,0.66]
[1765208284077,0.2,135.97,135.89,36.79231378]
[1765208284078,8.80994492,135.96,135.91,7.3577713]
[1765208284279,7.35564545,135.95,135.91,7.3577713]
[1765208284592,35.49527276,135.97,135.91,7.3577713]
[1765208284593,0.2,135.97,135.94,4.51825624]
[1765208284898,0.2,136.0,135.96,4.51825624]
[1765208285080,0.2,136.0,135.99,4.51825624]
[1765208285595,0.2,136.0,135.99,0.66]
[1765208285786,8.26,136.0,135.95,5.17825624]
[1765208286090,8.80994492,135.98,135.93,0.66]
[1765208286396,16.16429258,135.98,135.93,12.53482786]
[1765208286597,47.46947318,136.0,135.97,4.51825624]
[1765208286598,0.2,136.0,135.97,4.51825624]
[1765208286923,7.55308325,136.0,135.95,4.51825624]
[1765208287268,7.55308325,136.0,135.96,0.66]
[1765208287713,0.2,136.0,135.96,0.66]
[1765208288431,0.2,136.0,135.98,4.51825624]
[1765208288699,0.2,136.0,135.99,4.51825624]
[1765208289201,0.2,136.0,135.99,5.17825624]
[1765208289707,8.06,136.06,135.99,26.00537648]
[1765208290012,8.06,136.06,136.04,4.51825624]
[1765208290323,11.86417558,136.13,136.06,7.34969866]
[1765208290475,8.80994492,136.1,136.05,4.51825624]
[1765208290980,13.32820116,136.08,136.01,12.53062695]
[1765208291182,8.06,136.07,136.02,5.17825624]
[1765208291383,8.80994492,136.06,136.01,4.51825624]
[1765208291696,8.80994492,136.04,135.99,4.51825624]
[1765208291909,8.06,136.03,136.0,4.51825624]
[1765208292085,8.06,136.03,135.99,5.17825624]
[1765208292413,8.06,136.03,135.99,12.53150235]
[1765208292572,8.06,136.03,136.02,4.51825624]
[1765208292889,16.86994492,136.06,136.02,4.51825624]
[1765208293282,16.86994492,136.06,135.99,42.04581479]
[1765208293283,5.22825624,136.05,135.99,7.35324611]
[1765208293484,8.80994492,136.03,135.99,7.35324611]
[1765208293686,8.80994492,136.03,135.97,0.66]
[1765208293887,8.80994492,136.03,135.98,12.53222365]
[1765208294285,0.71,136.03,135.98,12.53222365]
[1765208294598,0.71,136.03,135.99,7.35339424]
[1765208294775,8.06,136.02,135.98,12.5321039]
[1765208294977,8.80994492,136.04,136.0,4.51825624]
[1765208295208,31.71868981,136.06,136.01,5.17825624]
[1765208295400,8.80994492,136.05,136.01,5.17825624]
[1765208295905,24.368864,136.06,136.02,5.17825624]
[1765208296095,31.71865525,136.06,136.02,5.17825624]
[1765208296702,8.80994492,136.05,136.01,4.51825624]
[1765208297081,8.80994492,136.05,136.01,5.17825624]
[1765208297277,8.06,136.06,136.03,4.51825624]
[1765208297685,8.06,136.06,136.04,0.66]
[1765208297880,8.06,136.06,136.03,4.51825624]
[1765208298208,8.06,136.06,136.05,4.51825624]
[1765208298393,8.06,136.06,136.04,5.17825624]
[1765208298592,8.06,136.06,136.04,8.01054335]
[1765208298794,8.06,136.06,136.02,11.86992591]
[1765208299103,8.06,136.06,136.02,12.52992591]
[1765208299400,9.51994492,136.05,136.01,11.87027051]
[1765208299599,8.80994492,136.05,136.02,11.86991335]
[1765208299802,8.80994492,136.05,136.02,12.52991335]
[1765208300176,8.80994492,136.05,136.0,4.51825624]
[1765208300385,8.80994492,136.03,135.99,11.87158494]
[1765208300685,16.84994492,136.03,135.99,11.87158494]
[1765208301021,24.20135463,136.03,135.99,12.53158494]
[1765208302094,24.92135463,136.03,135.98,11.87208249]
[1765208302289,0.72,136.02,135.96,16.988864]
[1765208302513,8.80994492,136.01,135.97,7.35451689]
[1765208302809,8.04,136.0,135.97,7.35449923]
[1765208303198,8.04,136.0,135.98,7.35371719]
[1765208303398,8.04,136.0,135.98,8.03371719]
[1765208303599,8.04,136.0,135.99,7.35348187]
[1765208303788,8.04,136.0,135.98,7.35382479]
[1765208304207,8.80994492,136.03,135.99,5.19825624]
[1765208304402,8.80994492,136.03,136.0,4.51825624]
[1765208304602,8.80994492,136.03,136.0,5.19825624]
[1765208304799,8.80994492,136.03,135.99,7.83386782]
[1765208305015,8.80994492,136.03,136.0,0.68]
[1765208305217,8.80994492,136.03,136.0,8.51386782]
[1765208306186,8.80994492,136.03,136.0,15.8667199]
[1765208306687,9.52994492,136.02,135.96,26.42719141]
[1765208306894,8.04,136.01,135.95,7.18410164]
[1765208307106,8.04,136.01,135.97,7.35417699]
[1765208307309,8.76,136.01,135.97,7.35417699]
[1765208308208,7.35294117,136.0,135.96,7.35494925]
[1765208308407,7.35294117,136.0,135.95,7.35554147]
[1765208308408,8.80994492,135.99,135.95,7.35554147]
[1765208308608,8.04,135.98,135.95,8.03554147]
[1765208309008,8.04,135.98,135.95,15.21964311]
[1765208309428,9.52994492,135.97,135.88,36.79669163]
[1765208309724,9.52994492,135.97,135.92,7.35718737]
[1765208310097,9.52994492,135.97,135.92,7.86410164]
[1765208310297,9.52994492,135.97,135.93,7.35672772]
[1765208310496,16.88458891,135.97,135.93,7.35672772]
[1765208310920,8.80994492,135.97,135.93,15.22082936]
[1765208311350,8.80994492,135.97,135.93,14.54082936]
[1765208311621,8.04,135.98,135.96,7.18410164]
[1765208311998,8.04,135.98,135.97,0.68]
[1765208312198,8.04,135.98,135.97,7.86410164]
[1765208312429,8.04,135.98,135.97,15.21866514]
[1765208313000,8.04,136.01,135.97,33.6050739]
[1765208313425,8.04,136.01,135.98,0.68]
[1765208313614,8.04,136.01,135.98,7.86410164]
[1765208314134,8.04,136.01,135.99,7.35348187]
[1765208316122,8.04,136.01,135.98,7.35387889]
[1765208316529,8.04,136.01,135.98,8.03387889]
[1765208317029,8.04,136.01,135.98,15.21798053]
[1765208317408,8.04,136.01,135.97,14.53845928]
[1765208317409,15.39241499,136.01,135.97,14.53845928]
[1765208317727,15.39241499,136.01,135.97,15.21845928]
[1765208318032,8.04,136.01,135.98,0.68]
[1765208318229,8.04,136.01,135.97,14.53845928]
[1765208318531,8.04,136.01,135.97,15.21845928]
[1765208318730,9.52994492,136.0,135.95,7.35531688]
[1765208319234,8.80994492,135.98,135.95,7.35531688]
[1765208319432,8.04,135.98,135.96,7.35501285]
[1765208319637,8.04,135.98,135.96,15.21911449]
[1765208319839,8.04,135.98,135.95,7.35542872]
[1765208320036,8.04,135.98,135.95,8.03542872]
[1765208320218,8.04,135.98,135.96,7.86410164]
[1765208320420,8.04,135.98,135.95,15.21953036]
[1765208320613,8.04,135.98,135.95,8.03542872]
[1765208320813,8.04,135.98,135.95,15.21953036]
[1765208321021,8.04,135.98,135.95,8.03542872]
[1765208321226,16.11404128,135.98,135.94,14.54005105]
[1765208321428,9.52994492,135.97,135.94,7.35594941]
[1765208321643,16.88459179,135.97,135.94,7.35594941]
[1765208322038,8.04,135.98,135.94,8.03594941]
[1765208322231,8.04,135.98,135.95,0.68]
[1765208322439,9.52994492,135.97,135.91,16.988864]
[1765208322625,16.71404656,135.97,135.91,0.68]
[1765208323146,8.80994492,135.95,135.91,7.35774753]
[1765208323344,8.06,135.94,135.91,7.35774753]
[1765208323647,8.06,135.94,135.91,0.68]
[1765208323821,8.06,135.94,135.92,0.68]
[1765208326146,8.06,135.94,135.92,8.03687698]
[1765208329338,5.98457619,136.01,135.93,8.03350941]
[1765208329541,16.86994492,136.0,135.95,7.35350941]
[1765208329747,16.86994492,136.0,135.93,0.68]
[1765208329748,4.778932,135.99,135.94,8.03350941]
[1765208329943,4.778932,135.99,135.95,7.35350941]
[1765208330120,4.778932,135.99,135.95,8.03350941]
[1765208330324,16.86994492,136.0,135.96,0.68]
[1765208330540,17.58994492,136.0,135.96,0.68]
[1765208330726,4.77955364,135.99,135.96,0.68]
[1765208331347,8.06,136.0,135.96,7.35488832]
[1765208331554,9.50994492,135.99,135.96,7.35488832]
[1765208332350,8.80994492,135.99,135.96,7.35488832]
[1765208332737,8.80994492,135.99,135.95,7.35564545]
[1765208333053,8.80994492,135.99,135.95,8.03564545]
[1765208333242,8.80994492,135.99,135.95,33.7782685]
[1765208333443,16.86351527,135.99,135.95,8.03564545]
[1765208333832,8.80994492,135.98,135.94,7.35598858]
[1765208334036,8.06,135.97,135.94,8.03598858]
[1765208335065,8.06,135.97,135.92,7.35350941]
[1765208335066,0.7,135.96,135.93,7.35653816]
[1765208335464,8.06,135.97,135.94,7.35607885]
[1765208335777,8.06,135.97,135.92,25.74588264]
[1765208335778,16.11459915,135.97,135.92,18.39237323]
[1765208335969,0.7,135.96,135.93,7.35652491]
[1765208336973,8.80994492,135.95,135.92,7.35726898]
[1765208337138,8.80994492,135.95,135.92,8.03726898]
[1765208337338,9.50994492,135.95,135.92,7.35726898]
[1765208337566,8.80994492,135.95,135.92,8.03726898]
[1765208338973,8.06,135.94,135.92,8.03726898]
[1765208339144,8.78,135.94,135.89,0.7]
[1765208339346,8.06,135.94,135.9,7.35350941]
[1765208339565,8.06,135.94,135.92,7.35717136]
[1765208339870,8.78,135.94,135.91,7.35757645]
[1765208340365,0.72,135.93,135.9,7.35824308]
[1765208340942,8.80994492,135.92,135.88,8.05925797]
[1765208341141,8.80994492,135.92,135.89,7.358839]
[1765208341342,8.06,135.91,135.88,8.05927031]
[1765208341560,8.78,135.91,135.86,26.45450464]
[1765208341965,8.78,135.91,135.87,7.35964686]
[1765208342266,8.78,135.91,135.87,8.05964686]
[1765208342442,7.35350941,135.94,135.88,0.7]
[1765208342644,8.06,135.93,135.88,0.7]
[1765208342944,8.06,135.93,135.88,8.05350941]
[1765208343146,8.06,135.93,135.87,25.75958798]
[1765208343147,8.07350941,136.0,135.92,7.35350941]
[1765208343447,7.35350941,135.96,135.9,0.7]
[1765208343678,8.80994492,135.94,135.89,7.35350941]
[1765208343876,8.80994492,135.94,135.88,8.05350941]
[1765208344077,8.80994492,135.92,135.88,0.7]
[1765208344374,8.80994492,135.92,135.87,25.75958798]
[1765208344375,24.22723469,135.92,135.87,25.75958798]
[1765208344544,24.94723469,135.92,135.88,0.7]
[1765208344743,17.58994492,135.92,135.88,0.7]
[1765208344956,16.86994492,135.92,135.88,8.05350941]
[1765208345191,8.80994492,135.95,135.91,7.35350941]
[1765208345475,8.80994492,135.96,135.92,7.35350941]
[1765208345680,8.80994492,135.96,135.93,0.7]
[1765208345973,8.80994492,135.96,135.92,7.35350941]
[1765208346172,8.06,135.97,135.93,7.35350941]
[1765208346470,8.06,135.97,135.95,7.35564545]
[1765208346673,5.97076809,136.02,135.95,7.35564545]
[1765208346843,12.13057256,136.02,135.97,7.35350941]
[1765208347049,8.06,136.01,135.97,7.35350941]
[1765208347656,8.06,136.01,135.98,7.35350941]
[1765208348182,8.06,136.01,135.98,8.05350941]
[1765208348561,8.78,136.01,135.97,7.35350941]
[1765208348983,8.78,136.01,135.98,14.70726116]
[1765208349481,8.06,136.01,135.98,14.70726116]
[1765208349858,8.06,136.01,135.98,15.40726116]
[1765208350088,8.06,136.01,135.98,14.70726116]
[1765208350400,16.13240767,136.01,135.97,14.70790029]
[1765208350684,16.88309219,136.0,135.96,7.35350941]
[1765208351273,0.72,135.99,135.95,14.70915486]
[1765208351481,0.72,135.99,135.95,15.40915486]
[1765208352198,8.80994492,136.0,135.96,8.05350941]
[1765208352684,9.52994492,136.0,135.97,7.3545635]
[1765208353599,8.80994492,135.98,135.94,7.35350941]
[1765208353803,8.06,135.97,135.93,7.35662508]
[1765208354085,8.78,135.97,135.93,8.05662508]
[1765208354679,9.52994492,135.96,135.92,14.71056906]
[1765208354893,8.80994492,135.96,135.92,14.71056906]
[1765208355094,16.16526823,135.96,135.91,14.71121841]
[1765208355298,8.80994492,135.94,135.9,7.35814962]
[1765208355478,8.80994492,135.92,135.89,7.35877904]
[1765208355682,9.52994492,135.92,135.88,7.35925663]
[1765208355983,9.52994492,135.92,135.88,14.71276604]
[1765208355984,0.72,135.91,135.88,14.71276604]
[1765208356982,0.72,135.91,135.88,7.35925663]
[1765208357193,8.0778117,135.91,135.86,15.41387513]
[1765208357397,8.06,135.9,135.87,7.35990788]
[1765208357694,8.06,135.9,135.88,7.3593002]
[1765208357999,8.06,135.9,135.88,15.41280961]
[1765208358198,8.06,135.9,135.88,14.71280961]
[1765208358374,8.06,135.92,135.89,0.7]
[1765208358774,8.06,135.92,135.89,7.89235401]
[1765208359099,8.06,135.92,135.89,7.35835401]
[1765208359320,9.52994492,135.91,135.86,25.75450237]
[1765208359489,16.88345433,135.91,135.84,42.0657049]
[1765208359690,8.80994492,135.89,135.85,7.35350941]
[1765208359998,16.86994492,135.89,135.84,7.35350941]
[1765208360197,8.80994492,135.87,135.82,14.71584354]
[1765208360386,8.06,135.86,135.82,7.36233413]
[1765208360588,8.78,135.86,135.82,7.36233413]
[1765208360898,0.72,135.85,135.82,7.36233413]
[1765208361396,8.06,135.86,135.82,7.36233413]
[1765208361599,8.75,135.86,135.82,8.05233413]
[1765208361913,9.49994492,135.85,135.81,0.2]
[1765208362279,0.69,135.84,135.81,0.2]
[1765208362591,8.06,135.83,135.81,7.56311766]
[1765208362787,8.06,135.83,135.81,15.60662707]
[1765208362984,8.75,135.86,135.82,14.71619531]
[1765208363179,8.75,135.86,135.82,7.3626859]
[1765208363407,9.49994492,135.85,135.81,15.60661722]
[1765208363611,9.49994492,135.85,135.82,7.36263357]
[1765208363788,9.49994492,135.85,135.82,14.71614298]
[1765208363988,9.49994492,135.85,135.81,15.60656297]
[1765208364183,0.69,135.84,135.81,7.56305356]
[1765208365093,0.69,135.84,135.82,7.36262595]
[1765208365413,0.69,135.84,135.81,7.56307731]
[1765208366206,0.69,135.84,135.81,0.2]
[1765208366713,8.06,135.83,135.81,0.2]
[1765208367284,8.06,135.83,135.81,7.5630692]
[1765208367710,8.75,135.83,135.81,7.5630692]
[1765208368503,8.06,135.83,135.81,7.5630692]
[1765208368809,8.80994492,135.85,135.82,5.27293633]
[1765208369102,16.86994492,135.85,135.82,5.27293633]
[1765208369304,16.86994492,135.85,135.82,8.05226246]
[1765208369493,17.55994492,135.85,135.82,7.36226246]
[1765208369682,16.86994492,135.85,135.83,0.69]
[1765208369883,16.86994492,135.85,135.82,8.05226246]
[1765208370079,24.92102553,135.85,135.81,12.14595261]
[1765208370284,17.55994492,135.85,135.82,7.36245128]
[1765208373331,24.23103038,135.85,135.81,12.14594726]
[1765208373500,17.55994492,135.85,135.81,12.83594726]
[1765208373816,17.55994492,135.85,135.81,0.2]
[1765208373817,9.49994492,135.84,135.81,0.2]
[1765208373998,8.80994492,135.82,135.81,0.2]
[1765208374205,16.86994492,135.82,135.81,0.2]
[1765208374517,22.14288125,135.82,135.79,0.2]
[1765208374717,0.69,135.81,135.79,0.2]
[1765208374895,8.80994492,135.81,135.79,0.2]
[1765208375091,24.368864,135.82,135.79,0.2]
[1765208375092,25.058864,135.82,135.79,0.2]
[1765208375501,8.75,135.82,135.79,7.56396713]
[1765208377616,8.06,135.82,135.8,5.27293633]
[1765208378030,0.69,135.87,135.81,5.27293633]
[1765208378328,8.80994492,135.84,135.8,0.69]
[1765208378505,8.80994492,135.84,135.79,12.14690346]
[1765208378705,0.69,135.83,135.79,12.14690346]
[1765208378909,8.80994492,135.81,135.79,0.2]
[1765208379417,8.06,135.82,135.79,12.1470946]
[1765208379624,8.06,135.82,135.8,11.94620234]
[1765208379807,8.06,135.82,135.8,12.63620234]
[1765208380640,22.98287745,135.87,135.81,5.27293633]
[1765208380641,36.08880512,135.87,135.81,5.27293633]
[1765208380933,8.06,135.85,135.82,4.58293633]
[1765208381238,8.80994492,135.84,135.8,11.94620234]
[1765208381406,8.80994492,135.84,135.8,12.63620234]
[1765208381610,8.80994492,135.84,135.79,12.14709402]
[1765208381611,8.05254599,135.83,135.79,12.14709402]
[1765208381914,8.06,135.82,135.79,5.47293633]
[1765208382324,8.06,135.82,135.79,12.83722764]
[1765208384435,8.06,135.82,135.8,5.27293633]
[1765208384810,8.06,135.82,135.8,0.69]
[1765208385013,8.06,135.82,135.79,27.83656667]
[1765208385214,8.06,135.82,135.79,28.52656667]
[1765208385456,16.11285133,135.82,135.79,0.2]
[1765208385616,9.49994492,135.81,135.79,0.2]
[1765208385816,1.86149401,135.8,135.79,0.2]
[1765208386137,11.36143893,135.8,135.79,0.2]
[1765208386332,10.67143893,135.78,135.72,1.86149401]
[1765208386532,8.06,135.77,135.72,2.55149401]
[1765208386847,8.06,135.77,135.72,0.69]
[1765208386848,8.80994492,135.76,135.72,0.69]
[1765208387137,8.80994492,135.76,135.72,9.91929057]
[1765208387645,8.80994492,135.76,135.73,8.05754139]
[1765208387822,8.06,135.77,135.73,9.9190354]
[1765208388229,15.42548775,135.77,135.73,9.9190354]
[1765208388529,15.42548775,135.77,135.73,9.2290354]
[1765208388530,8.06,135.77,135.73,9.2290354]
[1765208388739,8.06,135.77,135.74,0.69]
[1765208389952,8.06,135.77,135.74,5.27779537]
[1765208390121,8.06,135.77,135.75,4.58779537]
[1765208390321,8.06,135.79,135.76,7.36593989]
[1765208390542,16.17338294,135.81,135.76,12.64373526]
[1765208390723,16.17338294,135.81,135.77,5.27779537]
[1765208390724,8.06,135.8,135.77,5.27779537]
[1765208391221,8.06,135.82,135.79,4.58779537]
[1765208391823,8.06,135.82,135.8,0.69]
[1765208392154,8.06,135.82,135.8,5.27779537]
[1765208392454,8.06,135.82,135.8,12.64105625]
[1765208392631,8.06,135.82,135.81,0.69]
[1765208393333,8.06,135.82,135.8,11.95105625]
[1765208393530,8.06,135.82,135.81,0.69]
[1765208394253,22.11492388,135.87,135.81,31.04909349]
[1765208394438,8.06,135.86,135.84,4.58779537]
[1765208394637,8.06,135.86,135.83,4.58779537]
[1765208395059,8.06,135.86,135.83,5.27779537]
[1765208395255,8.06,135.86,135.84,0.69]
[1765208395638,8.06,135.86,135.84,5.27779537]
[1765208395829,8.06,135.87,135.84,5.27779537]
[1765208396043,8.06,135.87,135.83,4.58779537]
[1765208396354,8.80994492,135.86,135.82,11.95035746]
[1765208396530,8.80994492,135.86,135.79,22.99850302]
[1765208396531,14.06774029,135.86,135.79,22.99850302]
[1765208396726,8.80994492,135.84,135.8,7.36373505]
[1765208396928,8.06,135.83,135.8,7.36373505]
[1765208397433,9.47994492,135.82,135.77,23.69052379]
[1765208397842,9.47994492,135.82,135.78,0.69]
[1765208398243,8.03338425,135.81,135.77,7.36508924]
[1765208398456,8.03338425,135.81,135.76,7.36593325]
[1765208398457,8.80994492,135.79,135.76,7.36593325]
[1765208398664,8.06,135.8,135.77,0.69]
[1765208398955,8.06,135.8,135.77,5.27779537]
[1765208399154,8.06,135.8,135.77,0.69]
[1765208399861,8.73,135.8,135.76,7.36593325]
[1765208400047,9.47994492,135.79,135.74,7.36684127]
[1765208400247,8.80994492,135.77,135.73,7.36742625]
[1765208400431,8.80994492,135.77,135.72,7.36794913]
[1765208400432,8.06,135.76,135.72,7.36794913]
[1765208400631,8.73,135.76,135.71,7.36821532]
[1765208400954,8.73,135.76,135.73,4.58779537]
[1765208400955,8.06,135.76,135.73,4.58779537]
[1765208401161,8.06,135.76,135.72,31.06615127]
[1765208401655,8.06,135.76,135.72,12.64580265]
[1765208401830,4.58779537,135.74,135.67,0.2]
[1765208402028,8.80994492,135.72,135.67,23.90412445]
[1765208402343,8.80994492,135.72,135.68,7.37008077]
[1765208402545,8.80994492,135.72,135.68,8.06008077]
[1765208402747,8.06,135.73,135.69,0.69]
[1765208402926,5.97076809,135.78,135.69,0.69]
[1765208402927,25.77734101,135.78,135.72,4.58779537]
[1765208403131,8.80994492,135.76,135.71,4.58779537]
[1765208403331,8.80994492,135.76,135.7,5.27779537]
[1765208403733,22.12797344,135.79,135.75,4.58779537]
[1765208404049,8.80994492,135.79,135.75,4.58779537]
[1765208404252,9.47994492,135.79,135.73,5.27779537]
[1765208404570,8.06,135.8,135.76,4.58779537]
[1765208404937,4.77746962,135.82,135.77,5.27779537]
[1765208405460,12.83746962,135.83,135.78,0.69]
[1765208405756,12.83746962,135.83,135.78,5.27779537]
[1765208406059,12.83746962,135.83,135.78,0.69]
[1765208406246,12.83746962,135.83,135.79,0.69]
[1765208406666,12.83746962,135.83,135.79,8.05400809]
[1765208407038,12.83746962,135.83,135.8,0.69]
[1765208407264,0.67,135.87,135.81,4.58779537]
[1765208407448,8.06,135.86,135.82,0.69]
[1765208408043,8.06,135.86,135.84,4.58779537]
[1765208408243,8.06,135.86,135.84,0.69]
[1765208408664,8.06,135.86,135.82,5.27779537]
[1765208408867,8.06,135.86,135.83,11.94993922]
[1765208409067,8.06,135.86,135.83,12.63993922]
[1765208409401,8.06,135.86,135.84,5.27779537]
[1765208409540,8.80994492,135.9,135.85,4.58779537]
[1765208409742,8.06,135.9,135.87,4.58779537]
[1765208410056,8.06,135.93,135.89,4.58779537]
[1765208410253,12.84394491,135.93,135.89,4.58779537]
[1765208410471,8.06,135.93,135.9,0.69]
[1765208410890,8.06,135.93,135.9,8.04787483]
[1765208411579,8.06,135.93,135.9,7.35787483]
[1765208411756,15.41687518,135.93,135.89,7.35883278]
[1765208411968,8.80994492,135.89,135.83,0.69]
[1765208412267,8.80994492,135.89,135.8,36.81855675]
[1765208412268,8.06,135.88,135.84,31.04323549]
[1765208412464,8.80994492,135.89,135.86,4.58779537]
[1765208412465,8.06,135.89,135.86,4.58779537]
[1765208412875,8.06,135.89,135.86,5.27779537]
[1765208413082,5.25779537,135.88,135.81,18.40705231]
[1765208413302,12.61723016,135.88,135.83,7.36197341]
[1765208413443,12.61723016,135.88,135.84,7.36152811]
[1765208413783,8.06,135.89,135.86,7.36047718]
[1765208413953,8.06,135.89,135.87,0.69]
[1765208414344,8.06,135.89,135.87,5.27779537]
[1765208414549,24.33574309,135.93,135.88,4.58779537]
[1765208414754,31.72574309,135.93,135.88,5.27779537]
[1765208414953,31.72574309,135.93,135.89,8.04859727]
[1765208415158,8.06,135.93,135.89,12.63639264]
[1765208415355,9.47994492,135.92,135.86,11.94795486]
[1765208415593,9.47994492,135.92,135.84,7.36123561]
[1765208415594,8.80994492,135.89,135.84,7.36123561]
[1765208415760,16.86994492,135.89,135.84,7.36123561]
[1765208415963,8.80994492,135.87,135.83,8.05196771]
[1765208416273,8.80994492,135.87,135.83,7.36196771]
[1765208416592,5.25779537,135.88,135.8,8.06]
[1765208416593,8.80994492,135.88,135.84,12.63939563]
[1765208416963,8.06,135.89,135.85,0.69]
[1765208417183,8.06,135.89,135.85,5.27779537]
[1765208417184,16.86994492,135.89,135.85,5.27779537]
[1765208417387,8.80994492,135.88,135.84,7.36160026]
[1765208417587,15.41903013,135.89,135.85,0.69]
[1765208417906,9.47994492,135.88,135.84,7.36160026]
[1765208418062,14.06774029,135.88,135.83,7.36203098]
[1765208418423,33.82340356,135.89,135.84,12.63931826]
[1765208418424,15.41903013,135.89,135.84,12.63931826]
[1765208418571,8.06,135.89,135.84,12.63931826]
[1765208418778,8.06,135.89,135.85,0.69]
[1765208419368,8.06,135.89,135.86,7.36051818]
[1765208419593,16.08893082,135.89,135.85,7.36088375]
[1765208419796,8.73,135.89,135.85,8.05088375]
[1765208420001,8.06,135.89,135.85,8.05088375]
[1765208420179,15.41894595,135.89,135.85,7.36088375]
[1765208420386,16.08894595,135.89,135.85,7.36088375]
[1765208420596,0.67,135.88,135.85,7.36088375]
[1765208421308,8.0294371,135.88,135.84,7.36160188]
[1765208421782,8.06,135.89,135.86,4.58779537]
[1765208422319,8.06,135.89,135.86,5.24779537]
[1765208422620,8.06,135.89,135.87,5.24779537]
[1765208423225,8.06,135.92,135.89,7.35889322]
[1765208423405,8.06,135.92,135.89,11.94668859]
[1765208423731,8.06,135.92,135.9,0.66]
[1765208424096,0.7,135.91,135.87,8.01975607]
[1765208424318,8.80994492,135.9,135.85,0.66]
[1765208424636,8.06,135.89,135.86,4.58779537]
[1765208424803,8.06,135.89,135.86,7.35857517]
[1765208425001,8.06,135.89,135.88,7.35943479]